Cogmind - Beta 14 @@@ ROGUE MODE // 2024.11.19 @ 13:48:51 Player: Shimmyarah Result: Destroyed by 4I-GQT(R) with Subdweller Laser Performance ------------- Evolutions (0) 0 Regions Visited (1) 200 Robots Destroyed (11) 55 Value Destroyed (230) 230 Prototype IDs (0) 0 Alien Tech Used (0) 0 Bonus (0) 0 TOTAL SCORE: 485 Bonus ------- None Cogmind --------- Core Integrity 0/250 Matter 273/300 Energy 80/100 System Corruption 0% Temperature Warning (315) Movement Treading (160) Location -10/Materials Parts ------- > --- POWER (1) -------- (None) > --- PROPULSION (2) --- Light Treads > --- UTILITY (2) ------ Heat Sink Small Storage Unit > --- WEAPON (2) ------- Particle Gun > --- INVENTORY (8) ---- Improved Ion Engine Light Treads Wheel Compact Wheel Improved Terrain Scanner Seismic Detector Mining Laser Peak State ------------ > --- POWER ------------ Improved Ion Engine > --- PROPULSION ------- Aluminum Leg Aluminum Leg > --- UTILITY ---------- Small Storage Unit Seismic Detector > --- WEAPON ----------- Particle Gun Particle Gun > --- INVENTORY -------- Improved Ion Engine Light Treads Light Treads Wheel Compact Wheel Improved Terrain Scanner Assault Rifle Mining Laser [Rating: 11] Favorites ----------- Power Improved Ion Engine Engine Improved Ion Engine Propulsion Aluminum Leg Leg Aluminum Leg Utility Small Storage Unit Device Seismic Detector Storage Small Storage Unit Weapon Particle Gun Energy Gun Particle Gun Ballistic Gun Assault Rifle Build | -11 -10 ------- Run | Yrd Mat Slots Evolved . | . . Power . | . . Propulsion . | . . Utility . | . . Weapon . | . . Parts Attached 9 | 1 8 Power 1 | . 1 Engine 1 | . 1 Core . | . . Reactor . | . . Propulsion 2 | . 2 Treads 1 | . 1 Leg 1 | . 1 Wheel . | . . Hover . | . . Flight . | . . Utility 2 | 1 1 Device 2 | 1 1 Storage . | . . Processor . | . . Hackware . | . . Protection . | . . Artifact . | . . Weapon 4 | . 4 Energy Gun 4 | . 4 Energy Cannon . | . . Ballistic Gun . | . . Ballistic Cannon . | . . Launcher . | . . Special Weapon . | . . Impact Weapon . | . . Slashing Weapon . | . . Piercing Weapon . | . . Special Melee Weapon . | . . Unidentified Prototypes . | . . Parts Lost 5 | . 5 Power 1 | . 1 Propulsion 3 | . 3 Utility . | . . Weapon 1 | . 1 Highest Loss Streak 4 | . 4 To Critical Strikes 1 | . 1 Average Slot Usage (%) 97 | . 97 Engine 13 | . 13 Leg 27 | . 27 Device 14 | . 14 Storage 14 | . 14 Energy Gun 26 | . 26 Peak Build Rating 11 | 8 11 Average Rating 10 | 6 10 On Entrance 7 | 6 8 Naked Turns . | . . Heaviest Build 19 | 12 19 Greatest Support 20 | 20 20 Greatest Overweight (x) 1 | . 1 Average Overweight (x) . | . . Largest Inventory Capacity 8 | 8 8 Average Capacity 8 | 8 8 Most Carried 8 | 8 8 Average Carried 7 | 7 7 Final Capacity 8 | 8 8 Final Carried 8 | 8 7 Class Distribution -------------------- 100% | Mutant Dominant Class ---------------- Mutant | -10/Materials Resources | -11 -10 ----------- Run | Yrd Mat Matter Collected 357 | 252 105 Remotely . | . . Salvage Created 375 | 177 198 Parts 21 | 13 8 Haulers Intercepted . | . . Recyclers Shooed . | . . Parts Field Recycled . | . . Retrieved Matter . | . . Parts Self-Destructed . | . . Prevented . | . . Kills | -11 -10 ------- Run | Yrd Mat Combat Hostiles Destroyed 5 | . 5 Guns 4 | . 4 Classes Destroyed 4 | 2 2 Tunneler 5 | 5 . Recycler 1 | 1 . Grunt 4 | . 4 Subdweller 1 | . 1 Best Kill Streak 4 | 4 4 Combat Bots Only 4 | . 4 Max Kills in Single Turn 2 | 2 1 Gunslinging . | . . Exploded . | . . Melee . | . . Uniques/NPCs Destroyed . | . . Combat | -11 -10 -------- Run | Yrd Mat Hostile Shots Fired 40 | . 40 Missed 6 | . 6 Damage Taken 698 | . 698 Core 252 | . 252 Absorbed by Shields . | . . Core Remaining (%) 100 | 100 . Volleys Fired 32 | 14 18 Largest 2 | 2 2 Hottest 130 | 60 130 Shots Fired 60 | 28 32 Gun 60 | 28 32 Cannon . | . . Launcher . | . . Special . | . . Kinetic 14 | 14 . Thermal 46 | 14 32 Explosive . | . . Electromagnetic . | . . Robot Hit Streak 13 | 3 13 Robot Miss Streak 2 | 2 2 Penetration Max . | . . Secondary Targets . | . . Shots Hit Robots 38 | 13 25 Core Hits 16 | 8 8 Critical Kills . | . . Critical Parts Destroyed . | . . Critical Strikes 2 | . 2 Burn 2 | . 2 Melee Attacks . | . . Impact . | . . Slashing . | . . Piercing . | . . Sneak Attacks . | . . Combat Hostiles . | . . Follow-up Attacks . | . . Damage Inflicted 577 | 171 406 Guns 561 | 167 394 Cannons . | . . Explosions . | . . Melee . | . . Ramming 16 | 4 12 Kinetic 88 | 88 . Thermal 473 | 79 394 Explosive . | . . Electromagnetic . | . . Impact . | . . Slashing . | . . Piercing . | . . Highest Corruption . | . . Average Corruption . | . . Corruption Purged . | . . Corruption Blocked . | . . Overload Shots . | . . Overflow Damage . | . . Projectiles . | . . Explosions . | . . Melee . | . . Knockbacks . | . . Impact . | . . Kinetic . | . . Secondary . | . . Self-Inflicted Damage . | . . Shots . | . . Rammed . | . . Targets Rammed 5 | 1 4 Kicked 5 | 1 4 Crushed . | . . Highest Temperature 714 | 20 714 Average Temperature 304 | 17 327 Received Heat Transfer 240 | . 240 Effects 25 | . 25 Shutdowns 4 | . 4 Energy Bleed 3 | . 3 Interference 2 | . 2 Matter Decay 3 | . 3 Short Circuit 2 | . 2 Damage (minor) 2 | . 2 Damage (major) 7 | . 7 Damage (core) 2 | . 2 Siege Activations . | . . Robots Corrupted . | . . Combat Hostiles . | . . Parts Fried . | . . Impact Corruptions . | . . Robots Melted 1 | . 1 Combat Hostiles 1 | . 1 Parts Melted 4 | . 4 Heat Transferred 1248 | 175 1073 Parts Sabotaged . | . . Parts Stolen . | . . Parts Stripped . | . . Power Chain Reactions . | . . Alert | -11 -10 ------- Run | Yrd Mat Peak Influence 95 | 30 95 Initial 19 | . 19 Average 41 | 13 46 Maximum Alert Level . | . . Low Security (%) 100 | 100 100 Level 1 . | . . Level 2 . | . . Level 3 . | . . Level 4 . | . . Level 5 . | . . High Security . | . . Max Security . | . . Squads Dispatched . | . . Investigation . | . . Extermination . | . . Reinforcement . | . . Assault . | . . Garrison . | . . Intercept . | . . Searches Triggered . | . . Construction Impeded . | . . Haulers Reinforced . | . . Active Scanning Responses . | . . Cargo Convoy Interrupts . | . . Stealth | -11 -10 --------- Run | Yrd Mat Distress Signals 2 | . 2 Communications Jammed . | . . Distress Signals . | . . Times Spotted 12 | . 12 Peak Tracking Total 8 | . 8 Tactical Retreats 3 | . 3 Traps | -11 -10 ------- Run | Yrd Mat Traps Triggered . | . . Indirectly . | . . Trap Hack Attempts . | . . Triggered . | . . Disarmed . | . . Reprogrammed . | . . Reused . | . . Traps Extracted . | . . Installed . | . . Triggered . | . . Machines | -11 -10 ---------- Run | Yrd Mat Machines Disabled . | . . Max in Single Turn . | . . Machines Repaired . | . . Machines Dismantled . | . . Machines Sabotaged . | . . Overloaded Fab Kills . | . . Hacking | -11 -10 --------- Run | Yrd Mat Machines Accessed . | . . Terminals . | . . Fabricators . | . . Repair Stations . | . . Recycling Units . | . . Scanalyzers . | . . Garrison Access . | . . Total Hacks . | . . Successful . | . . Failed . | . . Catastrophic . | . . Database Lockouts . | . . Manual . | . . Terminals . | . . Fabricators . | . . Repair Stations . | . . Recycling Units . | . . Scanalyzers . | . . Garrison Access . | . . Terminal Hacks . | . . Fabricator Hacks . | . . Repair Station Hacks . | . . Recycling Unit Hacks . | . . Scanalyzer . | . . Garrison Access Hacks . | . . Unauthorized Hacks . | . . Terminals . | . . Fabricators . | . . Repair Stations . | . . Recycling Units . | . . Scanalyzers . | . . Garrison Access . | . . Data Cores Recovered . | . . Used . | . . Hacking Detections . | . . Full Trace Events . | . . Feedback Events . | . . Feedback Blocked . | . . Robot Schematics Acquired . | . . Robots Built . | . . Authchips . | . . Time . | . . Total Robot Build Rating . | . . Part Schematics Acquired . | . . Parts Built . | . . Authchips . | . . Time . | . . Total Part Build Rating . | . . Parts Repaired . | . . Time . | . . Parts Recycled . | . . Recycled Matter . | . . Retrieved Matter . | . . Retrieved Components . | . . Parts Scanalyzed . | . . Part Schematics Acquired . | . . Parts Damaged . | . . Bothacking | -11 -10 ------------ Run | Yrd Mat Used RIF Installer . | . . Robots Hacked . | . . Non-combat . | . . Combat . | . . Robot Hacks Applied . | . . Relay Couplers Released . | . . Fabnet Peak Effective % . | . . Robots Rewired . | . . Allies Hacked . | . . Hacks Repelled . | . . Allies | -11 -10 -------- Run | Yrd Mat Total Allies . | . . Largest Group . | . . Highest-Rated Group . | . . Highest-Rated Ally . | . . Total Orders . | . . Ally Attacks . | . . Total Damage . | . . Kills . | . . Allies Corrupted . | . . Allies Melted . | . . Intel | -11 -10 ------- Run | Yrd Mat Robot Analysis Total . | . . Derelict Logs Recovered . | . . Drone Launches . | . . Drone Recoveries . | . . Exploration | -11 -10 ------------- Run | Yrd Mat Turns Passed 659 | 100 559 Spaces Moved 302 | 44 258 Core . | . . Treads . | . . Legs 302 | 44 258 Wheels . | . . Hover . | . . Flight . | . . Fastest Speed 120 | 120 120 Average Speed 120 | 120 120 Slowest Speed 190 | 120 190 Overloaded Moves . | . . Propulsion Burnouts . | . . Robots Hopped . | . . Cave-ins Triggered . | . . Exploration Rate (%) 13 | 3 23 Regions Visited 1 Branch Regions . Pre-discovered Areas . | . . Known Exits Taken . | . . Unknown Exits Taken 1 | 1 . Scrap Searched . | . . Spaces Dug . | . . Terrain Destroyed . | . . Melee . | . . Projectile . | . . AOE . | . . Terrain Rammed . | . . Walls Destroyed . | . . Machines Disabled . | . . Actions | -11 -10 --------- Run | Yrd Mat Total 541 | 63 478 Wait 178 | . 178 Move 302 | 44 258 Hop . | . . Pick Up 7 | 3 4 Fast Attach 4 | 1 3 Attach 1 | . 1 Detach . | . . Swap 4 | . 4 Drop 9 | 1 8 Fire 32 | 14 18 Melee . | . . Ram . | . . Kick 4 | . 4 Crush . | . . Escape Stasis . | . . Rewire . | . . Trap . | . . Miscellaneous . | . . Route ------- -11/Scrapyard -10/Materials (discovered 3 exits: [*Min x2] / [*Sub]) History --------- Turn | Location | Event 16 | -11/Scrapyard | Discovered new exit (range 3) 101 | -11/Scrapyard | Entered Materials 169 | -10/Materials | Discovered new exit (range 11) 308 | -10/Materials | Build established: Mutant 472 | -10/Materials | Discovered new exit (range 7) 583 | -10/Materials | Discovered new exit (range 6) 585 | -10/Materials | Core integrity fell below 50% 601 | -10/Materials | Derelicts attacked the area 657 | -10/Materials | Core integrity fell below 20% 660 | -10/Materials | Destroyed by 4I-GQT(R) with Subdweller Laser Last Messages --------------- 00596_ Kicked R-06 Scavenger out of the way. 00597_ Particle Gun broken. 00597_ Overheating: Short circuit. 00597_ Acquired 105 matter. 00600_ Dropped Heat Sink. 00600_ Acquired Heat Sink. 00601_ ALERT: Derelict incursion detected, rerouting patrols to target area. 00631_ Acquired Particle Gun. 00633_ Dropped Broken Particle Gun. 00634_ Acquired Particle Gun. 00651_ XL-NWX(R) suffers critical hit (Burn). 00651_ XL-NWX(R) critical meltdown. 00651_ Sub. Beam Cannon melted. 00651_ Disposable Heat Sink melted. 00654_ Aluminum Leg destroyed. 00656_ Critical hit (Destroy). 00656_ Aluminum Leg destroyed. 00658_ Imp. Ion Engine destroyed. 00658_ Particle Gun destroyed. Map ----- +----------------------------------------------------+ | | | | | | | | | | | | | | | | | | | | | | | | | | | | | | | | | | | | | ?????????????????????###########???????????? | | ?????????????????????# =! #???????????? | | ?????????????????????# !! #???????##### | | ??????????############ ! #???????# | | ??????????# + ! #???##### | | ??????????# R##+############ !#=[!% | | ??????????# !R! % [* | | | ??????????#### @### #########=!!# ### | | ?????????????# #?# #???????## ####?? | | ?????????????#* [//#?# #????????# #????? | | ?????????????#* //#?#+##+######???# #????? | | ?????????????########?# #???# #????? | | ??????????????????????#[! #???# #????? | | ??????????????????????#|! #???# #????? | | ??????????????????????#!! #???# #????? | | ??????????????????????###########???# #????? | | ????????????????????????????????????# #????? | | ????????????????????????????????????# #????? | | ?????????????????????????????????#### ##???? | | ?????????????????????????????????# #???? | | ?????????????????????????????????# ##### | | ?????????????????????????????????# < + | | ?????????????????????????????????# # | | ?????????????????????????????????# # | | ?????????????????????????????????## ## | | ??????????????????????????????????# ## | | ??????????????????????????????????# ## | | ??????????????????????????????????# ## | | ??????????????????????????????????# ##+### | | ??????????????????????????######### | | ???????????????????? | | ???????????????????????????######## | +----------------------------------------------------+ Best States ------------- Heat Dissipation 35 Energy Generation 12 Energy Capacity 265 Matter Stores 300 Matter Capacity 300 Sight Range 16 Terrain Scan Density 10 Evasion (%) 55 Item Schematics ----------------- None Robot Schematics ------------------ None Fabricated ------------ Nothing Alien Tech Used ----------------- None Achievements -------------- None Challenges ------------ None Game ------ Seed AssemblyDecoyDoomcannon Manual? 0 Play Time 00:06:48 Cumulative 58.2 hours Start 2024.11.19 @ 13:43:02 End 2024.11.19 @ 13:48:51 Sessions 1 Manual Loads 0 Difficulty Rogue Special Mode None Game No. 102 Rogue 102 Adventurer 0 Explorer 0 Win Type - Total 0 Types 0/0/0/0/0/0/0/0/0 Lore% 40 Gallery% 35 Achievement% 28 Wizard Run 0 Options --------- Layout 1 ASCII 0 Keyboard 0 Movement Arrows Keybinds 0 Fullscreen 1 Font 24/Smallcaps Map View 50x40 Zoom Use 0% Tactical HUD 1 Map Filters NONE Filters NONE Steam 1 RUN: b0e83103-76f9-4d08-8966-6450ece79fd9